Cogmind - Beta 16.1 @@@ ROGUE MODE // 2026.04.14 @ 20:34:49 Player: Selene Result: Self-destructed Performance ------------- Evolutions (7) 3500 Regions Visited (15) 3000 Robots Destroyed (126) 630 Value Destroyed (5639) 5639 Prototype IDs (33) 660 Alien Tech Used (1) 200 Bonus (3685) 3685 TOTAL SCORE: 17314 Bonus ------- High Alert Combat Kills 114 Follower Combat Kills 1225 Registered with UFD 300 Met Optimus in HQ 500 Met Zhirov 300 Met Warlord at Base 500 MAIN.C Attacked Warlord 500 Warlord Defense Kills 280 Friendly Fire -34 Cogmind --------- Core Integrity 546/1300 Matter 15/300 Energy 22/100 System Corruption 5% Temperature Cool (0) Movement Core (400) Ox7 Location -3/Research Parts ------- > --- POWER (2) -------- (None) > --- PROPULSION (7) --- (None) > --- UTILITY (10) ----- Large Storage Unit Enhanced Optical Array Advanced Signal Interpreter Advanced Weapon Cycler Advanced Transmission Jammer Graphene Brace Advanced Hacking Suite > --- WEAPON (2) ------- (None) > --- INVENTORY (15) --- Fusion Reactor Combat Antigrav System Melee Analysis Suite Advanced Shield Generator Advanced Force Field Transdimensional Reconstructor Vortex Rail (36) Matter Neutralizer Vortex Driver (30) Hypervelocity Railgun Hypervelocity Mass Driver Gamma Bomb Array Fusion Bomb Launcher Vortex Catalyst Activator (10) Peak State ------------ > --- POWER ------------ Vortex Chain Reactor > --- PROPULSION ------- Improved Antigrav System Antigrav Array Antigrav Array Combat Linear Gravjet Combat Linear Gravjet > --- UTILITY ---------- Large Storage Unit Enhanced Optical Array Advanced Signal Interpreter Advanced Weapon Cycler Advanced Transmission Jammer Advanced Reaction Control System Graphene Brace Experimental Focal Shield Advanced Shield Generator Advanced Hacking Suite > --- WEAPON ----------- Railgun Railgun > --- INVENTORY -------- Fusion Reactor Improved Antigrav System Combat Antigrav System Antigrav Array Advanced Cooling System Transdimensional Reconstructor Vortex Rail Matter Neutralizer Vortex Driver Hypervelocity Mass Driver Fusion Bomb Launcher Vortex Catalyst Activator [Rating: 163] Favorites ----------- Power Light Fission Core Engine Subdweller Power Source Power Core Light Fission Core Reactor Light Antimatter Reactor Propulsion Gyrokinetic Inverter Treads Spiked Treads Leg Carbon-fiber Leg Wheel Armored Wheel Hover Unit Gyrokinetic Inverter Utility Large Storage Unit Device Advanced Cooling System Storage Large Storage Unit Processor Enhanced Optical Array Hackware Makeshift System Shield Protection Enhanced Scrap Shield Weapon Cooled Plasma Rifle Energy Gun Cooled Plasma Rifle Energy Cannon Matter Neutralizer Ballistic Gun Subdweller Machine Gun Ballistic Cannon Hypervelocity Mass Driver Launcher Fusion Bomb Launcher Special Weapon Junk Cannon Slashing Weapon Power Sword Build | -11 -10 -10 -9 -6 -5 -5 -5 -5 -4 -4 -4 -4 -4 -3 -3 ------- Run | Yrd Mat Sub Scr Fac Fac Upp Upp War Pro Fac Upp Upp Zhi Pro Res Slots Evolved 14 | . . . . 8 2 . . . . 2 . . . . 2 Power 1 | . . . . . 1 . . . . . . . . . . Propulsion 5 | . . . . 3 1 . . . . 1 . . . . . Utility 8 | . . . . 5 . . . . . 1 . . . . 2 Weapon . | . . . . . . . . . . . . . . . . Parts Attached 166 | 7 . 10 6 58 32 1 1 16 1 8 . . 4 2 20 Power 19 | 1 . 1 1 5 4 . 1 3 . 2 . . 1 . . Engine 7 | 1 . 1 1 3 1 . . . . . . . . . . Core 6 | . . . . 1 3 . 1 1 . . . . . . . Reactor 6 | . . . . 1 . . . 2 . 2 . . 1 . . Propulsion 50 | 2 . 2 2 20 11 . . 3 . . . . . 2 8 Treads 4 | 1 . 2 . 1 . . . . . . . . . . . Leg 17 | . . . . 16 1 . . . . . . . . . . Wheel 6 | 1 . . 2 2 . . . . . . . . . . 1 Hover 23 | . . . . 1 10 . . 3 . . . . . 2 7 Flight . | . . . . . . . . . . . . . . . . Utility 54 | 2 . 2 2 18 11 1 . 5 1 5 . . 2 . 5 Device 25 | 1 . . . 6 7 . . 3 1 3 . . 1 . 3 Storage 5 | 1 . . 2 . . . . 1 . 1 . . . . . Processor 8 | . . . . 5 2 . . . . 1 . . . . . Hackware 2 | . . . . 1 . . . . . . . . . . 1 Protection 14 | . . 2 . 6 2 1 . 1 . . . . 1 . 1 Artifact . | . . . . . . . . . . . . . . . . Weapon 43 | 2 . 5 1 15 6 . . 5 . 1 . . 1 . 7 Energy Gun 9 | 1 . 2 . 1 3 . . 1 . . . . 1 . . Energy Cannon 4 | . . . . 1 1 . . 1 . . . . . . 1 Ballistic Gun 17 | 1 . 2 1 8 1 . . . . 1 . . . . 3 Ballistic Cannon 4 | . . . . 2 . . . . . . . . . . 2 Launcher 4 | . . 1 . . 1 . . 1 . . . . . . 1 Special Weapon 4 | . . . . 2 . . . 2 . . . . . . . Impact Weapon . | . . . . . . . . . . . . . . . . Slashing Weapon 1 | . . . . 1 . . . . . . . . . . . Piercing Weapon . | . . . . . . . . . . . . . . . . Special Melee Weapon . | . . . . . . . . . . . . . . . . Unidentified Prototypes 22 | . . . . 4 2 1 . 10 . 1 . . 4 . . Parts Lost 62 | . . 1 . 31 7 . . . 1 . . . . 3 19 Power 8 | . . 1 . 4 2 . . . . . . . . . 1 Propulsion 24 | . . . . 13 2 . . . 1 . . . . 1 7 Utility 20 | . . . . 8 2 . . . . . . . . 1 9 Weapon 10 | . . . . 6 1 . . . . . . . . 1 2 Highest Loss Streak 11 | . . 1 . 11 4 . . . 1 . . . . 2 5 To Critical Strikes 1 | . . . . 1 . . . . . . . . . . . Average Backups 13 | 2 5 7 18 16 13 12 13 12 11 12 12 13 13 10 12 Power . | . 1 . . . . . . . 1 1 1 1 1 1 1 Propulsion 2 | 1 2 1 3 . 2 2 2 2 2 1 2 2 2 . 2 Utility 5 | . 1 3 6 5 4 6 7 4 4 4 4 5 5 4 3 Weapon 4 | . 1 1 5 7 3 2 3 4 4 4 5 4 3 2 5 Tool/Special . | . . . . . . . . . . . . . . . . Unused Backups 63 | . 1 8 6 12 8 3 . 6 . 2 . . 2 . 15 Power 5 | . . 2 1 1 1 . . . . . . . . . . Propulsion 9 | . . 1 1 2 1 . . 1 . . . . . . 3 Utility 31 | . . 5 2 3 4 2 . 4 . 2 . . 1 . 8 Weapon 10 | . 1 . 2 1 2 . . 1 . . . . . . 3 Tool/Special 8 | . . . . 5 . 1 . . . . . . 1 . 1 Average Slot Usage (%) 91 | . 100 99 93 91 96 88 88 87 88 88 89 89 77 94 84 Engine 5 | . 14 13 14 4 2 . . . . . . . . . . Core 2 | . . . . 1 8 11 11 10 11 . . . . . . Reactor 1 | . . . . . . . . . . 9 10 10 7 8 3 Treads 7 | . 14 26 16 4 . . . . . . . . . . . Leg 3 | . . . . 16 11 . . . . . . . . . . Wheel 4 | . 14 1 11 8 . . . . . . . . . . . Hover 13 | . . . . . 20 29 29 29 29 31 31 31 31 34 24 Device 10 | . 14 11 . 9 9 11 11 12 17 16 15 15 11 17 21 Storage 8 | . 14 14 14 6 5 5 5 5 5 5 5 5 5 5 4 Processor 6 | . . . . 13 16 5 5 5 5 9 10 10 10 10 9 Hackware 1 | . . . . 4 . . . . . . . . . . 4 Protection 6 | . . 2 8 5 6 11 11 9 5 5 5 5 8 6 5 Energy Gun 4 | . 14 13 . 2 7 10 11 9 11 6 5 5 . 5 . Ballistic Gun 11 | . 14 14 28 8 2 . . . . 3 5 5 . 5 5 Peak Build Rating 163 | 7 7 12 22 69 99 101 101 119 119 131 125 128 130 134 163 Average Rating 70 | 5 7 10 15 52 84 100 100 105 115 125 124 125 112 128 149 On Entrance 80 | . 7 7 12 22 66 99 101 100 117 115 125 125 126 124 134 Avg Prop Armor Cover (%) 6 | 13 12 12 . 6 3 . . . . . . . . . 9 Naked Turns . | . . . . . . . . . . . . . . . . Heaviest Build 236 | 12 12 21 214 236 60 67 63 88 71 74 72 73 87 77 90 Greatest Support 96 | 10 10 40 40 85 96 67 67 71 71 82 82 82 82 87 94 Greatest Overweight (x) 22 | 1 1 1 8 19 2 . . 22 . . . . 1 . 7 Average Overweight (x) . | . 1 . 2 1 . . . . . . . . . . . Largest Inventory Capacity 35 | 8 8 8 35 35 15 15 15 15 15 15 15 15 15 15 15 Average Capacity 17 | 7 8 8 22 23 15 15 15 15 15 15 15 15 15 15 15 Most Carried 35 | 4 8 8 35 35 15 15 15 15 15 15 15 15 15 15 15 Average Carried 15 | 3 6 7 18 18 14 14 15 14 14 14 14 14 14 12 14 Final Capacity 35 | 8 8 8 35 15 15 15 15 15 15 15 15 15 15 15 15 Final Carried 35 | 4 8 8 35 15 15 15 15 15 14 15 15 15 15 14 15 Class Distribution -------------------- 29% | Mutant 19% | Scout 17% | Scavenger-Mutant 15% | Hauler-Mutant 8% | Commander-Mutant 5% | Scavenger-Scout Dominant Class ---------------- Mutant | -10/Materials Mutant | -10/Subcaves Mutant | -9/Scraptown Scavenger-Mutant | -6/Factory Scout | -5/Factory Commander-Mutant | -5/Upper Caves Mutant | -5/Upper Caves Commander-Mutant | -5/Warlord Scavenger-Mutant | -4/Proximity Caves Scout | -4/Factory Scout | -4/Upper Caves Scout | -4/Upper Caves Scout | -4/Zhirov Scavenger-Scout | -3/Proximity Caves Scout | -3/Research Resources | -11 -10 -10 -9 -6 -5 -5 -5 -5 -4 -4 -4 -4 -4 -3 -3 ----------- Run | Yrd Mat Sub Scr Fac Fac Upp Upp War Pro Fac Upp Upp Zhi Pro Res Matter Collected 5683 | 230 . 399 193 1834 793 102 20 270 55 192 126 65 . 255 1149 Remotely . | . . . . . . . . . . . . . . . . Salvage Created 6164 | 25 . 401 . 1726 1211 120 . 179 128 451 406 79 . 56 1382 Parts 279 | 8 . 29 . 81 59 6 . 2 . 19 2 3 . . 70 Haulers Intercepted 5 | . . . . 2 1 . . . . 1 . . . . 1 Recyclers Shooed 14 | 1 . . . 5 1 . . . . 1 . . . . 6 Parts Field Recycled . | . . . . . . . . . . . . . . . . Retrieved Matter . | . . . . . . . . . . . . . . . . Parts Self-Destructed 42 | . . 18 . . . 5 17 . . . . 2 . . . Prevented 2 | . . . . . . 2 . . . . . . . . . Parts Restored . | . . . . . . . . . . . . . . . . Kills | -11 -10 -10 -9 -6 -5 -5 -5 -5 -4 -4 -4 -4 -4 -3 -3 ------- Run | Yrd Mat Sub Scr Fac Fac Upp Upp War Pro Fac Upp Upp Zhi Pro Res Combat Hostiles Destroyed 98 | . . 12 . 26 23 2 . 2 2 7 . 1 . 4 19 Guns 64 | . . 12 . 19 9 1 . 1 1 6 . 1 . 4 10 Cannons 11 | . . . . 6 1 . . . . . . . . . 4 AOE 17 | . . . . . 11 1 . . . . . . . . 5 Classes Destroyed 22 | 1 . 3 . 11 2 1 . 1 . 1 1 . . 1 . Worker 8 | . . . . 2 3 . . . . 2 . . . . 1 Builder 2 | . . . . . 2 . . . . . . . . . . Tunneler 2 | 2 . . . . . . . . . . . . . . . Hauler 5 | . . . . 2 1 . . . . 1 . . . . 1 Recycler 3 | . . . . 1 . . . . . . . . . . 2 Minesweeper 1 | . . . . . . 1 . . . . . . . . . Mechanic 1 | . . . . . . . . . . 1 . . . . . Operator 2 | . . . . 1 1 . . . . . . . . . . Drone 2 | . . . . . . . . . . . . . . 2 . Watcher 4 | . . . . 2 2 . . . . . . . . . . Swarmer 18 | . . 4 . . 5 . . . . 4 . . . . 5 Grunt 29 | . . . . 15 8 2 . . . 1 . . . . 3 Brawler 2 | . . . . . 1 . . 1 . . . . . . . Duelist 1 | . . . . 1 . . . . . . . . . . . Sentry 11 | . . 1 . 2 3 . . . . . . 1 . . 4 Specialist 1 | . . . . 1 . . . . . . . . . . . Hunter 11 | . . . . 3 2 . . . 2 . . . . 2 2 Programmer 14 | . . . . 3 4 . . . . 2 . . . . 5 Heavy 1 | . . . . 1 . . . . . . . . . . . Subdweller 7 | . . 7 . . . . . . . . . . . . . Samaritan 1 | . . . . . . . . . . . 1 . . . . Marauder 1 | . . . . . . . . 1 . . . . . . . Best Kill Streak 9 | 2 . 4 . 4 9 2 . 1 2 5 1 1 . 2 4 Combat Bots Only 7 | . . 4 . 3 7 2 . 1 2 4 . 1 . 2 4 Max Kills in Single Turn 4 | 1 . 2 . 2 4 1 . 1 1 1 1 1 . 1 3 Gunslinging 1 | . . 1 . . . . . . . . . . . . . Exploded 4 | . . . . . 4 1 . . . . . . . . 3 Melee . | . . . . . . . . . . . . . . . . Uniques/NPCs Destroyed . | . . . . . . . . . . . . . . . . Combat | -11 -10 -10 -9 -6 -5 -5 -5 -5 -4 -4 -4 -4 -4 -3 -3 -------- Run | Yrd Mat Sub Scr Fac Fac Upp Upp War Pro Fac Upp Upp Zhi Pro Res Hostile Shots Fired 1060 | . . 48 . 384 110 9 . 7 43 56 . 14 . 44 345 Missed 376 | . . 14 . 105 46 4 . 4 24 22 . 5 . 19 133 Hits 684 | . . 34 . 279 64 5 . 3 19 34 . 9 . 25 212 Melee 6 | . . . . 6 . . . . . . . . . . . Projectile 678 | . . 34 . 273 64 5 . 3 19 34 . 9 . 25 212 AOE 2 | . . . . . 2 . . . . . . . . . . Critical Strikes 34 | . . . . 14 4 . . . . 1 . . . 1 14 Actively Blocked 16 | . . . . . . . . . . 1 . . . 1 14 Part Disruptions 1 | . . . . . . . . . . . . . . . 1 Damage Taken 12769 | . . 757 . 4888 1660 94 . 50 217 653 . 207 . 512 3731 Core 1720 | . . 139 . 519 154 . . . 12 32 . . . 110 754 Absorbed by Shields 564 | . . . . 61 10 . . 27 . . . . . . 466 Redirected to Shielding 359 | . . . . . . . . . . . . . . . 359 Ignored by Resistances 382 | . . . . . . . . . 105 . . . . . 277 Regen/Repaired (Parts) 377 | . . . . 184 98 . . 12 . . . . . . 83 Core Remaining (%) 70 | 100 . . 44 38 . . . . 83 . . . . 87 . Volleys Fired 554 | 7 1 71 . 150 77 8 1 13 13 44 9 9 . 23 128 Largest 2 | 2 2 2 . 2 2 2 2 2 2 2 2 2 . 2 2 Hottest 148 | 60 60 90 . 148 144 48 48 144 144 102 54 72 . 75 105 Shots Fired 949 | 14 2 101 . 281 120 13 2 24 26 74 18 16 . 44 214 Gun 795 | 14 2 95 . 231 94 10 2 21 26 74 18 16 . 44 148 Cannon 125 | . . . . 42 18 . . 1 . . . . . . 64 Launcher 19 | . . 6 . . 8 3 . . . . . . . . 2 Special 10 | . . . . 8 . . . 2 . . . . . . . Kinetic 563 | 7 1 70 . 216 35 . . . . 22 9 7 . 21 175 Thermal 331 | 7 1 25 . 57 77 10 2 21 26 52 9 9 . . 35 Explosive 19 | . . 6 . . 8 3 . . . . . . . . 2 Electromagnetic . | . . . . . . . . . . . . . . . . Impact 7 | . . . . 7 . . . . . . . . . . . Entropic 26 | . . . . . . . . 1 . . . . . 23 2 Robot Hit Streak 32 | 1 . 15 . 32 9 5 1 7 13 7 6 6 . 4 16 Robot Miss Streak 7 | 7 2 4 . 4 3 2 1 4 6 3 1 2 . 5 3 Penetration Max 2 | . . . . 1 1 . . . . 1 . . . 1 2 Secondary Targets 10 | . . 3 . 5 1 . . . 1 . . . . . . Max Gunslinging Chain 1 | . . 1 . 1 1 . . . 1 . . . . . . Shots Hit Robots 551 | 4 . 41 . 217 55 7 1 14 16 36 12 9 . 19 120 Core Hits 250 | 2 . 22 . 83 44 7 1 4 3 16 6 3 . 7 52 Critical Kills 21 | . . . . 4 3 . . . . 2 . . . 2 10 Critical Parts Destroyed 14 | . . . . 4 2 . . . . . . . . . 8 Critical Strikes 56 | . . . . 12 10 . . 3 1 5 . 1 . 2 22 Burn 15 | . . . . 2 5 . . 3 1 3 . 1 . . . Destroy 39 | . . . . 8 5 . . . . 2 . . . 2 22 Blast 2 | . . . . 2 . . . . . . . . . . . Melee Attacks 1 | . . . . 1 . . . . . . . . . . . Impact . | . . . . . . . . . . . . . . . . Slashing 1 | . . . . 1 . . . . . . . . . . . Piercing . | . . . . . . . . . . . . . . . . Sneak Attacks . | . . . . . . . . . . . . . . . . Combat Hostiles . | . . . . . . . . . . . . . . . . Follow-up Attacks . | . . . . . . . . . . . . . . . . Damage Inflicted 16098 | 64 12 679 . 4591 2840 337 25 465 424 1171 341 240 . 608 4301 Guns 11917 | 64 12 645 . 3593 1282 99 25 465 424 1171 341 240 . 608 2948 Cannons 1499 | . . . . 703 300 . . . . . . . . . 496 Explosions 2385 | . . 34 . . 1258 238 . . . . . . . . 855 Melee . | . . . . . . . . . . . . . . . . Ramming 6 | . . . . 4 . . . . . . . . . . 2 Kinetic 8883 | 53 12 441 . 3390 447 . . . . 603 172 145 . 243 3377 Thermal 4101 | 11 . 204 . 906 1135 99 25 465 424 568 169 95 . . . Explosive 2385 | . . 34 . . 1258 238 . . . . . . . . 855 Electromagnetic . | . . . . . . . . . . . . . . . . Impact 291 | . . . . 291 . . . . . . . . . . . Slashing . | . . . . . . . . . . . . . . . . Piercing . | . . . . . . . . . . . . . . . . Entropic 432 | . . . . . . . . . . . . . . 365 67 Highest Corruption 5 | . . . . 2 4 . . . . 4 4 4 4 4 5 Average Corruption 2 | . . . . 1 3 . . . . 2 4 4 4 4 2 Corruption Purged 4 | . . . . . 4 . . . . . . . . . . Corruption Blocked . | . . . . . . . . . . . . . . . . Effects 66 | . . . . 21 5 . . . . 7 5 5 5 7 11 Message Errors 13 | . . . . 6 . . . . . . . 2 1 2 2 Matter Fused 24 | . . . . 9 . . . . . 1 3 1 2 3 5 Heat Flow Errors 5 | . . . . 2 1 . . . . 1 . . . 1 . Energy Discharges 8 | . . . . 1 . . . . . 3 1 . 1 1 1 Parts Rejected 3 | . . . . 1 . . . . . 1 . . . . 1 Parts Fused 3 | . . . . . . . . . . 1 1 . 1 . . Data Loss (minor) 5 | . . . . 1 2 . . . . . . 2 . . . Data Loss (major) 1 | . . . . . 1 . . . . . . . . . . Misfires 2 | . . . . 1 . . . . . . . . . . 1 Weapon Failures 2 | . . . . . 1 . . . . . . . . . 1 Overload Shots 40 | . . . . . 24 . . 6 2 7 . 1 . . . Effects 3 | . . . . . 2 . . . 1 . . . . . . Energy Bleed 1 | . . . . . 1 . . . . . . . . . . Heat Surge 2 | . . . . . 1 . . . 1 . . . . . . Overflow Damage 266 | . . . . 90 83 . . . . . . . . . 93 Projectiles 90 | . . . . 90 . . . . . . . . . . . Explosions 176 | . . . . . 83 . . . . . . . . . 93 Melee . | . . . . . . . . . . . . . . . . Knockbacks 13 | . . . . 8 . . . . . . . . . . 5 Impact 1 | . . . . 1 . . . . . . . . . . . Kinetic 11 | . . . . 6 . . . . . . . . . . 5 Secondary 1 | . . . . 1 . . . . . . . . . . . Self-Inflicted Damage 101 | . . 54 . . 41 . . . . . . . . . 6 Shots 5 | . . 3 . . 1 . . . . . . . . . 1 Rammed 1 | . . . . . . . . . . . . . . . 1 Targets Rammed 2 | . . . . 1 . . . . . . . . . . 1 Kicked 1 | . . . . 1 . . . . . . . . . . . Crushed . | . . . . . . . . . . . . . . . . Highest Temperature 331 | . . . . 250 331 . . 45 160 240 . . 6 207 200 Average Temperature 70 | . . . . 78 75 . . 20 103 92 . . 2 55 48 Received Heat Transfer 2467 | . . 33 . 1403 348 27 . 4 . 9 . 54 . . 589 Effects 5 | . . . . 1 4 . . . . . . . . . . Energy Bleed 4 | . . . . 1 3 . . . . . . . . . . Damage (minor) 1 | . . . . . 1 . . . . . . . . . . Siege Activations . | . . . . . . . . . . . . . . . . Martial Activations . | . . . . . . . . . . . . . . . . Shielding Activations . | . . . . . . . . . . . . . . . . Robots Disrupted . | . . . . . . . . . . . . . . . . Combat Hostiles . | . . . . . . . . . . . . . . . . Robots Corrupted . | . . . . . . . . . . . . . . . . Combat Hostiles . | . . . . . . . . . . . . . . . . Parts Fried . | . . . . . . . . . . . . . . . . Impact Corruptions 1 | . . . . 1 . . . . . . . . . . . Robots Melted 6 | . . . . 1 2 . . 1 1 1 . . . . . Combat Hostiles 6 | . . . . 1 2 . . 1 1 1 . . . . . Parts Melted 39 | . . . . 5 17 . . 9 4 4 . . . . . Heat Transferred 9261 | 25 . 425 . 1887 2410 200 50 1254 960 1400 350 300 . . . Parts Sabotaged . | . . . . . . . . . . . . . . . . Parts Stolen . | . . . . . . . . . . . . . . . . Parts Stripped . | . . . . . . . . . . . . . . . . Power Chain Reactions . | . . . . . . . . . . . . . . . . Alert | -11 -10 -10 -9 -6 -5 -5 -5 -5 -4 -4 -4 -4 -4 -3 -3 ------- Run | Yrd Mat Sub Scr Fac Fac Upp Upp War Pro Fac Upp Upp Zhi Pro Res Maximum Alert Level 2 | . . . . 1 2 . . . . 2 . . . . 2 Low Security (%) 60 | 100 100 . . 86 73 . . . . . . . . . 43 Level 1 26 | . . . . 13 24 . . . . 47 . . . . 36 Level 2 13 | . . . . . 1 . . . . 52 . . . . 20 Level 3 . | . . . . . . . . . . . . . . . . Level 4 . | . . . . . . . . . . . . . . . . Level 5 . | . . . . . . . . . . . . . . . . High Security . | . . . . . . . . . . . . . . . . Max Security . | . . . . . . . . . . . . . . . . Peak Influence 677 | 5 . . . 292 545 . . . . 677 . . . . 577 Initial 600 | . . . . . 94 . . . . 600 . . . . 300 Average 191 | . . . . 82 135 . . . . 439 . . . . 268 Influence Increases 5536 | 10 . 160 . 1163 1088 133 137 317 50 972 10 20 . 60 1416 Destroy 0b10 Robot/C 2320 | . . 100 . 720 540 80 80 180 40 140 . 20 . 40 380 Destroy 0b10 Robot/NC 170 | 10 . . . 45 45 5 . 5 . 20 10 . . 10 20 Destroy Leader 506 | . . . . 208 126 10 20 . 10 30 . . . 10 92 Allied During Kill 254 | . . . . 51 56 38 37 72 . . . . . . . Successful Hack 193 | . . . . 72 24 . . . . 38 . . . . 59 Disable Machine 195 | . . . . 45 45 . . . . 30 . . . . 75 Destroy Structure 473 | . . . . 7 192 . . . . 54 . . . . 220 Advance Influence 900 | . . . . . . . . . . 600 . . . . 300 Partial Spotted 105 | . . . . . 15 . . . . . . . . . 90 Lose Combat Pursuer 420 | . . 60 . 15 45 . . 60 . 60 . . . . 180 Influence Decreases 5000 | 10 . 32 128 969 741 361 191 461 165 698 203 101 . 60 880 Entered New Map 984 | . . . 128 . 100 201 61 259 115 . 103 17 . . . Time Decay 2666 | 10 . 32 . 446 542 160 130 84 40 398 100 84 . 60 580 Search Patrol Dispatched 400 | . . . . . . . . . . 300 . . . . 100 Lost Part 542 | . . . . 273 69 . . . 10 . . . . . 190 Lost Ally 258 | . . . . 100 30 . . 118 . . . . . . 10 Purge Threat 150 | . . . . 150 . . . . . . . . . . . Squads Dispatched 46 | . . . . 13 13 . . . . 8 . . . . 12 Investigation 17 | . . . . 4 5 . . . . 4 . . . . 4 Extermination 15 | . . . . 5 3 . . . . 3 . . . . 4 Reinforcement 11 | . . . . 3 3 . . . . 1 . . . . 4 Assault 2 | . . . . . 2 . . . . . . . . . . Garrison 1 | . . . . 1 . . . . . . . . . . . Intercept . | . . . . . . . . . . . . . . . . Searches Triggered 4 | . . . . . . . . . . 3 . . . . 1 Construction Impeded 3 | . . . . . 1 . . . . . . . . . 2 Haulers Reinforced 2 | . . . . 1 . . . . . . . . . . 1 Active Scanning Responses . | . . . . . . . . . . . . . . . . Cargo Convoy Interrupts 1 | . . . . . 1 . . . . . . . . . . Stealth | -11 -10 -10 -9 -6 -5 -5 -5 -5 -4 -4 -4 -4 -4 -3 -3 --------- Run | Yrd Mat Sub Scr Fac Fac Upp Upp War Pro Fac Upp Upp Zhi Pro Res Distress Signals 5 | . . . . 1 1 . . . 2 . . . . 1 . Communications Jammed 27 | . . . . . . . . . 2 1 . . . 2 22 Distress Signals 23 | . . . . . . . . . . 1 . . . . 22 Times Spotted 204 | . 3 15 . 46 30 4 1 33 7 13 . 1 . 5 46 Peak Tracking Total 9 | . 3 6 . 5 5 2 1 9 3 4 . 1 . 2 9 Tactical Retreats 18 | . . 2 . 1 2 . . 1 . 3 . . . . 9 Traps | -11 -10 -10 -9 -6 -5 -5 -5 -5 -4 -4 -4 -4 -4 -3 -3 ------- Run | Yrd Mat Sub Scr Fac Fac Upp Upp War Pro Fac Upp Upp Zhi Pro Res Traps Triggered 4 | . . 1 . 1 2 . . . . . . . . . . Indirectly . | . . . . . . . . . . . . . . . . Trap Hack Attempts . | . . . . . . . . . . . . . . . . Triggered . | . . . . . . . . . . . . . . . . Disarmed . | . . . . . . . . . . . . . . . . Reprogrammed . | . . . . . . . . . . . . . . . . Reused . | . . . . . . . . . . . . . . . . Traps Extracted . | . . . . . . . . . . . . . . . . Installed . | . . . . . . . . . . . . . . . . Triggered . | . . . . . . . . . . . . . . . . Machines | -11 -10 -10 -9 -6 -5 -5 -5 -5 -4 -4 -4 -4 -4 -3 -3 ---------- Run | Yrd Mat Sub Scr Fac Fac Upp Upp War Pro Fac Upp Upp Zhi Pro Res Machines Disabled 15 | . . . . 3 3 . . 1 . 2 . 1 . . 5 Max in Single Turn 2 | . . . . 2 1 . . 1 . 1 . 1 . . 1 Garrison Access 2 | . . . . . 1 . . . . 1 . . . . . Machines Repaired . | . . . . . . . . . . . . . . . . Machines Dismantled . | . . . . . . . . . . . . . . . . Machines Sabotaged . | . . . . . . . . . . . . . . . . Overloaded Fab Kills . | . . . . . . . . . . . . . . . . Hacking | -11 -10 -10 -9 -6 -5 -5 -5 -5 -4 -4 -4 -4 -4 -3 -3 --------- Run | Yrd Mat Sub Scr Fac Fac Upp Upp War Pro Fac Upp Upp Zhi Pro Res Machines Accessed 55 | . 1 . 2 14 12 1 . 2 . 8 . 3 . . 12 Terminals 20 | . 1 . . 9 3 . . . . 2 . . . . 5 Fabricators 3 | . . . . 1 1 . . . . . . . . . 1 Repair Stations 5 | . . . . 1 2 . . . . 1 . . . . 1 Recycling Units 15 | . . . . 3 5 . . . . 4 . . . . 3 Scanalyzers 2 | . . . . . . . . . . . . . . . 2 Garrison Access 2 | . . . . . 1 . . . . 1 . . . . . Total Hacks 135 | . 2 . 4 50 24 1 . 3 . 22 . 3 . . 26 Successful 67 | . . . 4 26 8 1 . 3 . 10 . 3 . . 12 Failed 68 | . 2 . . 24 16 . . . . 12 . . . . 14 Catastrophic 14 | . . . . 4 4 . . . . 3 . . . . 3 Database Lockouts . | . . . . . . . . . . . . . . . . Manual 84 | . 2 . . 35 13 . . . . 16 . . . . 18 Terminals 68 | . 2 . . 39 8 . . . . 7 . . . . 12 Fabricators 7 | . . . . 2 1 . . . . . . . . . 4 Repair Stations 11 | . . . . 3 4 . . . . 3 . . . . 1 Recycling Units 28 | . . . . 6 9 . . . . 9 . . . . 4 Scanalyzers 5 | . . . . . . . . . . . . . . . 5 Garrison Access 5 | . . . . . 2 . . . . 3 . . . . . Terminal Hacks 26 | . . . 4 12 1 1 . 3 . . . 3 . . 2 Record 6 | . . . 3 . . . . 2 . . . 1 . . . Part Schematic 1 | . . . . 1 . . . . . . . . . . . Robot Analysis 1 | . . . . 1 . . . . . . . . . . . Prototype ID Bank 3 | . . . . 3 . . . . . . . . . . . Open Door 4 | . . . . . . 1 . 1 . . . 2 . . . Branch Access Points 1 | . . . . . . . . . . . . . . . 1 Terminal Index 1 | . . . . 1 . . . . . . . . . . . Unreport Threat 1 | . . . . 1 . . . . . . . . . . . Locate Traps 3 | . . . . 3 . . . . . . . . . . . Hauler Manifests 1 | . . . . 1 . . . . . . . . . . . Zone Layout 3 | . . . . 1 1 . . . . . . . . . 1 Proto ID Catalog 1 | . . . 1 . . . . . . . . . . . . Fabricator Hacks 1 | . . . . . . . . . . . . . . . 1 Network Status 1 | . . . . . . . . . . . . . . . 1 Repair Station Hacks . | . . . . . . . . . . . . . . . . Recycling Unit Hacks 4 | . . . . 1 1 . . . . 2 . . . . . Retrieve Components 4 | . . . . 1 1 . . . . 2 . . . . . Scanalyzer 2 | . . . . . . . . . . . . . . . 2 Retrieve Study 2 | . . . . . . . . . . . . . . . 2 Garrison Access Hacks 1 | . . . . . . . . . . 1 . . . . . Seal Access 1 | . . . . . . . . . . 1 . . . . . Unauthorized Hacks 33 | . . . . 13 6 . . . . 7 . . . . 7 Terminals 17 | . . . . 10 1 . . . . 3 . . . . 3 Assimilate 3 | . . . . 1 . . . . . . . . . . 2 Botnet 7 | . . . . 3 1 . . . . 2 . . . . 1 Operators 1 | . . . . 1 . . . . . . . . . . . Skim 6 | . . . . 5 . . . . . 1 . . . . . Fabricators 1 | . . . . . . . . . . . . . . . 1 Haulers 1 | . . . . . . . . . . . . . . . 1 Repair Stations 2 | . . . . . 1 . . . . . . . . . 1 Patch 2 | . . . . . 1 . . . . . . . . . 1 Recycling Units 13 | . . . . 3 4 . . . . 4 . . . . 2 Fedlink 10 | . . . . 2 3 . . . . 4 . . . . 1 Scrapoids 2 | . . . . 1 1 . . . . . . . . . . Scraphulk 1 | . . . . . . . . . . . . . . . 1 Scanalyzers . | . . . . . . . . . . . . . . . . Garrison Access . | . . . . . . . . . . . . . . . . Data Cores Recovered 2 | . . . . 1 1 . . . . . . . . . . Used 1 | . . . . 1 . . . . . . . . . . . Hacking Detections 39 | . 1 . . 13 10 . . . . 6 . . . . 9 Full Trace Events 2 | . . . . 1 . . . . . . . . . . 1 Feedback Events . | . . . . . . . . . . . . . . . . Feedback Blocked . | . . . . . . . . . . . . . . . . Robot Schematics Acquired . | . . . . . . . . . . . . . . . . Robots Built . | . . . . . . . . . . . . . . . . Authchips . | . . . . . . . . . . . . . . . . Time . | . . . . . . . . . . . . . . . . Total Robot Build Rating . | . . . . . . . . . . . . . . . . Part Schematics Acquired 1 | . . . . 1 . . . . . . . . . . . Parts Built . | . . . . . . . . . . . . . . . . Authchips . | . . . . . . . . . . . . . . . . Time . | . . . . . . . . . . . . . . . . Total Part Build Rating . | . . . . . . . . . . . . . . . . Part Studies Acquired 2 | . . . . . . . . . . . . . . . 2 Parts Repaired . | . . . . . . . . . . . . . . . . Time . | . . . . . . . . . . . . . . . . Parts Recycled . | . . . . . . . . . . . . . . . . Recycled Matter . | . . . . . . . . . . . . . . . . Retrieved Matter . | . . . . . . . . . . . . . . . . Retrieved Components 4 | . . . . 1 1 . . . . 2 . . . . . Parts Scanalyzed . | . . . . . . . . . . . . . . . . Part Schematics Acquired . | . . . . . . . . . . . . . . . . Parts Damaged . | . . . . . . . . . . . . . . . . Bothacking | -11 -10 -10 -9 -6 -5 -5 -5 -5 -4 -4 -4 -4 -4 -3 -3 ------------ Run | Yrd Mat Sub Scr Fac Fac Upp Upp War Pro Fac Upp Upp Zhi Pro Res Used RIF Installer . | . . . . . . . . . . . . . . . . Robots Hacked 1 | . . . . 1 . . . . . . . . . . . Non-combat . | . . . . . . . . . . . . . . . . Combat . | . . . . . . . . . . . . . . . . Robot Hacks Applied . | . . . . . . . . . . . . . . . . Manual 1 | . . . . 1 . . . . . . . . . . . Relay Couplers Released 3 | . . . . . 3 . . . . . . . . . . Machine Destruction 3 | . . . . . 3 . . . . . . . . . . Fabnet Peak Effective % . | . . . . . . . . . . . . . . . . Robots Rewired 5 | . . . . . . . . 5 . . . . . . . Allies Hacked . | . . . . . . . . . . . . . . . . Hacks Repelled . | . . . . . . . . . . . . . . . . Allies | -11 -10 -10 -9 -6 -5 -5 -5 -5 -4 -4 -4 -4 -4 -3 -3 -------- Run | Yrd Mat Sub Scr Fac Fac Upp Upp War Pro Fac Upp Upp Zhi Pro Res Total Allies 19 | . . . . 8 5 . . 5 . . . . . . 1 Largest Group 8 | . . . . 5 4 4 4 8 . . . . . . 1 Highest-Rated Group 370 | . . . . 143 188 180 180 370 . . . . . . 45 Highest-Rated Ally 64 | . . . . 38 47 47 47 64 . . . . . . 45 Initial UFD Resources 73 | . . . . 24 37 50 50 50 52 52 70 70 70 73 73 Total Orders 4 | . . . . . . . . 4 . . . . . . . STAY 2 | . . . . . . . . 2 . . . . . . . FOLLOW 2 | . . . . . . . . 2 . . . . . . . Ally Attacks 205 | . . . . 78 35 11 20 61 . . . . . . . Total Damage 4550 | . . . . 1482 673 195 360 1840 . . . . . . . Kills 31 | . . . . 12 4 2 5 8 . . . . . . . Allies Corrupted . | . . . . . . . . . . . . . . . . Allies Melted 1 | . . . . . . . . 1 . . . . . . . Intel | -11 -10 -10 -9 -6 -5 -5 -5 -5 -4 -4 -4 -4 -4 -3 -3 ------- Run | Yrd Mat Sub Scr Fac Fac Upp Upp War Pro Fac Upp Upp Zhi Pro Res Active Infowar (turns) 10690 | 22 95 1300 . 2028 1567 337 266 1061 302 944 205 316 154 300 1793 Optics 7939 | . . . . 694 1567 337 266 1061 302 944 205 316 154 300 1793 Sensors 4908 | . . . . 759 1038 . . . . 707 205 296 154 300 1449 Seismic 2751 | 22 95 1300 . 1334 . . . . . . . . . . . Jamming 3873 | . . . . . 15 . . . 248 944 205 316 131 243 1771 ECM 1 | . . . . . 1 . . . . . . . . . . Robot Analysis Total 1 | . . . . 1 . . . . . . . . . . . Derelict Logs Recovered 13 | . . . 4 . . 1 3 . 1 . 1 3 . . . Drone Launches . | . . . . . . . . . . . . . . . . Drone Recoveries . | . . . . . . . . . . . . . . . . Exploration | -11 -10 -10 -9 -6 -5 -5 -5 -5 -4 -4 -4 -4 -4 -3 -3 ------------- Run | Yrd Mat Sub Scr Fac Fac Upp Upp War Pro Fac Upp Upp Zhi Pro Res Turns Passed 14814 | 90 95 1507 3615 2262 1567 337 266 1061 302 944 205 316 154 300 1793 Spaces Moved 13296 | 61 86 743 2016 1105 1668 504 374 1199 474 1455 368 558 241 440 2004 Core 14 | 6 . . . . . . . 7 . . . . . . 1 Treads 2037 | . . 722 1315 . . . . . . . . . . . . Legs 1156 | . . . . 751 405 . . . . . . . . . . Wheels 1217 | 55 86 21 701 354 . . . . . . . . . . . Hover 8872 | . . . . . 1263 504 374 1192 474 1455 368 558 241 440 2003 Flight . | . . . . . . . . . . . . . . . . Fastest Speed 38 | 50 95 95 105 120 38 54 54 50 51 47 47 47 47 43 43 Average Speed 86 | 88 95 158 176 142 65 54 54 68 51 47 47 47 47 44 50 Slowest Speed 1170 | 95 95 160 210 1170 201 54 54 1150 51 47 47 47 107 47 400 Overloaded Moves . | . . . . . . . . . . . . . . . . Propulsion Burnouts . | . . . . . . . . . . . . . . . . Robots Hopped . | . . . . . . . . . . . . . . . . Potential Cave-ins 2 | . . . . . . . . . . 2 . . . . . Cave-ins Triggered . | . . . . . . . . . . . . . . . . Exploration Rate (%) 52 | 3 20 60 88 30 33 65 71 92 64 26 61 71 63 63 35 Regions Visited 15 Branch Regions 10 Pre-discovered Areas 9 | . . . 2 4 . 1 . . 1 . . 1 . . . Known Exits Taken 8 | . . . . 1 1 1 . . . 1 1 1 1 1 . Unknown Exits Taken 7 | 1 1 1 1 . . . 1 1 1 . . . . . . Scrap Searched 20 | . . 3 5 . . 3 2 . 2 . 1 2 . 2 . Spaces Dug 64 | . . 11 . 2 18 . . . . 4 . . . . 29 Terrain Destroyed 385 | . . 37 . 5 95 24 . 2 . 29 10 3 . 57 123 Melee 1 | . . . . 1 . . . . . . . . . . . Projectile 182 | . . . . 4 37 . . 2 . 29 10 3 . 57 40 AOE 200 | . . 37 . . 58 24 . . . . . . . . 81 Terrain Rammed . | . . . . . . . . . . . . . . . . Walls Destroyed . | . . . . . . . . . . . . . . . . Machines Disabled . | . . . . . . . . . . . . . . . . Actions | -11 -10 -10 -9 -6 -5 -5 -5 -5 -4 -4 -4 -4 -4 -3 -3 --------- Run | Yrd Mat Sub Scr Fac Fac Upp Upp War Pro Fac Upp Upp Zhi Pro Res Total 15728 | 80 97 980 2089 1529 2020 557 435 1415 506 1640 382 594 280 501 2623 Wait 1172 | . 5 129 . 122 153 30 58 106 16 106 4 21 6 27 389 Move 13281 | 60 85 742 2015 1104 1667 503 373 1198 473 1454 367 557 240 439 2004 Hop . | . . . . . . . . . . . . . . . . Pick Up 198 | 6 5 9 50 33 29 4 . 16 . 10 1 2 6 3 24 Fast Attach 69 | 5 . 1 2 21 11 1 . 11 . 1 . . 9 . 7 Attach 72 | 2 . . 1 34 10 . . 1 1 2 . . 3 6 12 Detach 22 | . . . 1 7 6 2 . . . . . . . 2 4 Swap 149 | . . 15 3 26 32 3 2 17 3 13 . 3 2 1 29 Drop 183 | . 1 13 17 30 35 6 1 28 . 10 1 2 14 . 25 Fire 554 | 7 1 71 . 150 77 8 1 13 13 44 9 9 . 23 128 Melee 1 | . . . . 1 . . . . . . . . . . . Ram 1 | . . . . . . . . . . . . . . . 1 Kick 1 | . . . . 1 . . . . . . . . . . . Crush . | . . . . . . . . . . . . . . . . Escape Stasis . | . . . . . . . . . . . . . . . . Rewire 25 | . . . . . . . . 25 . . . . . . . Trap . | . . . . . . . . . . . . . . . . Miscellaneous . | . . . . . . . . . . . . . . . . Route ------- -11/Scrapyard -10/Materials (discovered 2 exits: [*Min] / [*Sub]) -10/Subcaves (discovered 4 exits: [*Mat] / [*Rec] / *Scr x2) -9/Scraptown -6/Factory (discovered 6 exits: *Fac x3 / Low / Ext x2) -5/Factory (discovered 2 exits: *Upp x2) -5/Upper Caves -5/Upper Caves -5/Warlord -4/Proximity Caves -4/Factory (discovered 2 exits: *Upp / Arm) -4/Upper Caves -4/Upper Caves (discovered 2 exits: *Res / *Zhi) -4/Zhirov -3/Proximity Caves -3/Research (discovered 3 exits: Res / Qua x2) History --------- Turn | Location | Event 33 | -11/Scrapyard | Discovered new exit (range 14) 91 | -11/Scrapyard | Entered Materials 92 | -10/Materials | Met a group of wandering Federalists 165 | -10/Materials | Discovered new exit (range 15) 180 | -10/Materials | Discovered new exit (range 5) 186 | -10/Materials | Entered Subcaves 186 | -10/Subcaves | Accompanied by 3 allies 187 | -10/Subcaves | Continued accompanying wandering Federalists (5) 187 | -10/Subcaves | Approached by a straggling Scientist 290 | -10/Subcaves | Ambushed by Subdweller buried in earth 324 | -10/Subcaves | Build established: Mutant 453 | -10/Subcaves | Ambushed by Subdwellers from Twisted Machinery 456 | -10/Subcaves | Wandering Federalist uncovered a shortcut to Scraptown 502 | -10/Subcaves | Lost 3 allies 654 | -10/Subcaves | Disturbed a concealed Subdweller 1149 | -10/Subcaves | Shifting Twisted Machinery released Mak. System Shield 1159 | -10/Subcaves | Shifting Twisted Machinery released Shrapnel Trap 1184 | -10/Subcaves | Discovered new exit (range 9) 1596 | -10/Subcaves | Discovered new exit (range 14) 1637 | -10/Subcaves | Core integrity fell below 50% 1693 | -10/Subcaves | Entered Scraptown 1897 | -9/Scraptown | Heard Great Nut preacher, LISTEN AND RECITE! 1935 | -9/Scraptown | Scanned Subdweller tech in exchange for log data 1938 | -9/Scraptown | Learned location of Extension (-6) 1940 | -9/Scraptown | Learned Research garrison access intel 1941 | -9/Scraptown | Learned location of Armory (-4) 1943 | -9/Scraptown | Learned location of 1 exit from Research 2031 | -9/Scraptown | Visited UFD Registry 2031 | -9/Scraptown | Registered with UFD as "Longmind" 2071 | -9/Scraptown | Visited Botcube Research 2100 | -9/Scraptown | Visited Junk Repository 2125 | -9/Scraptown | Visited Science Guys 2205 | -9/Scraptown | Delivered Scrap Shield to a Scientist 2337 | -9/Scraptown | Visited Junk Cannon Lab 2369 | -9/Scraptown | Visited DA-N13 Charitable Foundation 2375 | -9/Scraptown | Found DCF Scrap (28 items) 2410 | -9/Scraptown | Visited Abandonware Association 2426 | -9/Scraptown | Learned abandonware demo "REPAIR.EXE" 2455 | -9/Scraptown | Visited LU-1G1's Boring Crew 2482 | -9/Scraptown | Visited Scrapoid Research Area 2508 | -9/Scraptown | Visited Supply Room 2543 | -9/Scraptown | Visited Curators Association 2989 | -9/Scraptown | Visited Observation Area 3013 | -9/Scraptown | Visited Fellowship of the Rings 3043 | -9/Scraptown | Visited Assassins FH 3297 | -9/Scraptown | Visited Comm Corps 3345 | -9/Scraptown | Visited Spacefarers 3570 | -9/Scraptown | Visited IN-MT5's Study 4034 | -9/Scraptown | Found Prototype Special Weapon 4158 | -9/Scraptown | Build established: Hauler-Mutant 4397 | -9/Scraptown | Found Botcube 5201 | -9/Scraptown | Met Optimus 5201 | -9/Scraptown | Accepted into 0bPrime 5299 | -9/Scraptown | Discovered new exit (range 5) 5308 | -9/Scraptown | Entered Factory 5308 | -6/Factory | Evolved 8 slots: Propulsion x3, Utility x5 5465 | -6/Factory | Identified Junk Cannon 5862 | -6/Factory | Loaded intel: 8 recycling unit locations 6036 | -6/Factory | Lost 5 parts (1p2n1u1w) 6144 | -6/Factory | Lost 6 parts (1p2n1u2w) 6420 | -6/Factory | Learned location of Protoforge (-2) 6544 | -6/Factory | Build established: Scavenger-Mutant 6716 | -6/Factory | Learned location of 2 exits from Lower Caves 6772 | -6/Factory | Learned location of 1 exit from Upper Caves 6816 | -6/Factory | Learned location of Zion (-6) 6830 | -6/Factory | Lost 3 parts (1p1n1u) 6850 | -6/Factory | Learned location of 1 exit from Lower Caves 6893 | -6/Factory | Learned 2 Lower Caves zone layouts 6897 | -6/Factory | Lost 4 parts (2n1u1w) 6899 | -6/Factory | Identified exit to Extension 6899 | -6/Factory | Identified exit to Factory 6900 | -6/Factory | Scrapoid reinforcements arrived 6915 | -6/Factory | Learned location of Proximity Caves (-6) 6977 | -6/Factory | Learned 2 Proximity Caves zone layouts 7006 | -6/Factory | Discovered exit to Factory (range 13) 7021 | -6/Factory | Identified exit to Lower Caves 7160 | -6/Factory | Botcube activated 7164 | -6/Factory | Core integrity fell below 50% 7168 | -6/Factory | Botcube completed mutation into legged form, armed with 1 cannon. 7253 | -6/Factory | Lost 11 parts (1p5n3u2w) 7254 | -6/Factory | Found Botcube 7360 | -6/Factory | Garrison activated, responded to threat 7488 | -6/Factory | Discovered exit to Factory (range 21) 7570 | -6/Factory | Entered another Factory area 7570 | -5/Factory | Accompanied by 1 ally 7570 | -5/Factory | Evolved 2 slots: Power x1, Propulsion x1 7799 | -5/Factory | Destroyed 7 combat bots 7982 | -5/Factory | Found Hvy. Reactive Plating 8002 | -5/Factory | Build established: Scavenger-Skirmisher 8167 | -5/Factory | Discovered new exit (range 15) 8197 | -5/Factory | Identified exit to Upper Caves 8255 | -5/Factory | Loaded intel: 8 recycling unit locations 8408 | -5/Factory | Build established: Scout 8583 | -5/Factory | Cargo convoy interrupted 8780 | -5/Factory | Lost 4 parts (1p2n1u) 8785 | -5/Factory | Destroyed 7 combat bots 9065 | -5/Factory | Build established: Mutant 9107 | -5/Factory | Scrapoids reinforcements arrived? 9117 | -5/Factory | Discovered exit to Upper Caves (range 19) 9137 | -5/Factory | Entered Upper Caves 9137 | -5/Upper Caves | Accompanied by 4 allies 9138 | -5/Upper Caves | Identified exit to Upper Caves 9139 | -5/Upper Caves | UFD Scientist delivered a prototype 9145 | -5/Upper Caves | Found Prototype Protection 9145 | -5/Upper Caves | Identified Enh. Scrap Shield 9239 | -5/Upper Caves | Learned location of Warlord (-5) 9385 | -5/Upper Caves | Build established: Commander-Mutant 9474 | -5/Upper Caves | Entered another Upper Caves area 9474 | -5/Upper Caves | Accompanied by 4 allies 9534 | -5/Upper Caves | Learned Factory emergency access door positions 9694 | -5/Upper Caves | Learned Factory trap positions 9726 | -5/Upper Caves | Discovered new exit (range 8) 9740 | -5/Upper Caves | Entered Warlord 9740 | -5/Warlord | Accompanied by 3 allies 10013 | -5/Warlord | Warlord's base attacked by MAIN.C 10049 | -5/Warlord | Found Prototype Special Weapon 10049 | -5/Warlord | Identified RU-N14's Throwing Claymores v3 10055 | -5/Warlord | Found RU-N14's Throwing Claymores v3 10079 | -5/Warlord | Found Prototype Launcher 10079 | -5/Warlord | Identified Vortex Catalyst Activator 10082 | -5/Warlord | Found Prototype Energy Gun 10082 | -5/Warlord | Identified Vortex Rail 10085 | -5/Warlord | Found Prototype Energy Cannon 10085 | -5/Warlord | Identified Vortex Driver 10113 | -5/Warlord | Found Vortex Rail 10116 | -5/Warlord | Found Vortex Driver 10203 | -5/Warlord | Rebuked by Warlord 10332 | -5/Warlord | Found Prototype Reactor 10332 | -5/Warlord | Identified Vortex Chain Reactor 10363 | -5/Warlord | Warlord forces counterattacked 10434 | -5/Warlord | Found Prototype Device 10434 | -5/Warlord | Identified Exp. Focal Shield 10482 | -5/Warlord | Spotted Striker 10487 | -5/Warlord | Spotted Striker 10542 | -5/Warlord | Spotted Striker 10584 | -5/Warlord | Spotted Executioner 10593 | -5/Warlord | Lost 11 allies 10688 | -5/Warlord | Warlord base infiltrated, sounded retreat 10691 | -5/Warlord | Lost 6 allies 10725 | -5/Warlord | Attached CPS modules to Enhanced Demolisher. 10734 | -5/Warlord | P-80 Master assimilated allied VQ-LDK(B) 10734 | -5/Warlord | Spotted VQ-LDK(B) 10743 | -5/Warlord | Destroyed VQ-LDK(B) 10760 | -5/Warlord | Spotted Striker 10795 | -5/Warlord | Discovered new exit (range 14) 10801 | -5/Warlord | Entered Proximity Caves 10833 | -4/Proximity Caves | Build established: Scavenger-Mutant 10932 | -4/Proximity Caves | Spotter reported a threat 11001 | -4/Proximity Caves | Spotter reported a threat 11018 | -4/Proximity Caves | Spotter reported a threat 11078 | -4/Proximity Caves | Spotter reported a threat 11097 | -4/Proximity Caves | Discovered new exit (range 13) 11103 | -4/Proximity Caves | Entered Factory 11103 | -4/Factory | Evolved 2 slots: Propulsion x1, Utility x1 11104 | -4/Factory | Identified exit to Armory 11105 | -4/Factory | Loaded intel: 71 trap records 11338 | -4/Factory | Loaded intel: 8 recycling unit locations 11353 | -4/Factory | Search patrols dispatched 11555 | -4/Factory | Build established: Scout 11603 | -4/Factory | Search patrols dispatched 11764 | -4/Factory | Discovered new exit (range 11) 11769 | -4/Factory | Identified exit to Upper Caves 11853 | -4/Factory | Search patrols dispatched 12047 | -4/Factory | Entered Upper Caves 12113 | -4/Upper Caves | Encountered a Warlord checkpoint 12139 | -4/Upper Caves | Learned Research trap positions 12211 | -4/Upper Caves | Discovered new exit (range 15) 12217 | -4/Upper Caves | Identified exit to Upper Caves 12252 | -4/Upper Caves | Entered another Upper Caves area 12314 | -4/Upper Caves | Encountered a Warlord checkpoint 12352 | -4/Upper Caves | Discovered new exit (range 5) 12355 | -4/Upper Caves | Identified exit to Research 12375 | -4/Upper Caves | Attracted the attention of an 0b10 checkpoint 12461 | -4/Upper Caves | Learned location of 1 exit from Research 12480 | -4/Upper Caves | Learned Research terminal intel 12525 | -4/Upper Caves | Discovered new exit (range 10) 12553 | -4/Upper Caves | Found Alien Artifact 12567 | -4/Upper Caves | Identified exit to Zhirov 12568 | -4/Upper Caves | Entered Zhirov 12570 | -4/Zhirov | Discovered new exit (range 3) 12572 | -4/Zhirov | Identified exit to Proximity Caves 12579 | -4/Zhirov | Met Zhirov 12596 | -4/Zhirov | Zhirov requested help retrieving the SGEMP Prototype 12604 | -4/Zhirov | Found Alien Artifact 12604 | -4/Zhirov | Identified Integrated Dissipator 12604 | -4/Zhirov | Installed Integrated Dissipator, increased core heat dissipation (+20) 12681 | -4/Zhirov | Found Alien Artifact 12722 | -4/Zhirov | Entered Proximity Caves 12785 | -3/Proximity Caves | Spotter reported a threat 12961 | -3/Proximity Caves | Spotter reported a threat 13017 | -3/Proximity Caves | Discovered exit to Research (range 12) 13022 | -3/Proximity Caves | Entered Research 13022 | -3/Research | Evolved 2 slots: Utility x2 13023 | -3/Research | Identified exit to Research 13023 | -3/Research | Identified exit to Quarantine 13024 | -3/Research | Loaded intel: 65 trap records 13025 | -3/Research | Loaded intel: 22 terminal locations 13026 | -3/Research | Loaded intel: 3 garrison access locations 13272 | -3/Research | Search patrols dispatched 13404 | -3/Research | Found Fusion Bomb Launcher 13984 | -3/Research | Spotted B-86 Titan 14266 | -3/Research | Loaded intel: 5 recycling unit locations 14396 | -3/Research | Build established: Scavenger-Scout 14624 | -3/Research | Lost 3 parts (2n1u) 14751 | -3/Research | Found Gamma Bomb Array 14770 | -3/Research | Lost 5 parts (1p2n2w) 14804 | -3/Research | Core integrity fell below 50% 14815 | -3/Research | Self-destructed Last Messages --------------- 14726_ Cmb. Linear Gravjet destroyed. 14733_ Acquired Imp. Utility Shielding. 14738_ Vortex Chain Reactor destroyed. 14739_ Railgun+ destroyed. 14739_ Antigrav Array+ destroyed. 14751_ Acquired Gamma Bomb Array. 14773_ Adv. Cooling System destroyed. 14774_ System corrupted: Adv. Transmission Jammer rejected. 14774_ Acquired Adv. Transmission Jammer. 14776_ G-67 Veteran suffers critical hit (Burn). 14776_ Cmb. Linear Gravjet destroyed. 14779_ Slug penetrates Wall. 14792_ Penetrated by Slug. 14792_ Slug penetrates Wall. 14793_ Imp. Utility Shielding destroyed. 14795_ ONZDN06JW HF%A#SYVWYEL&NGRKWA 14796_ Antigrav Array+ destroyed. 14810_ Slammed into P-80 Master. 14814_ Imp. Antigrav System destroyed. Map ----- +----------------------------------------------------+ | ?????# """ #??# #????????????????? | | ?????# """ #??# #????????????????? | | ?????# """ #??# ###########??????? | | ###### #??########### # #??????? | | #? #???# # # #??????? | | #??? #???# # # ! """ #??????? | | !#????? #???# + + """ #??????? | | " ########+###### # # """ #??????? | | "" + ## # # #??????? | | "" # ## # # #??????? | | "" ###+##+#### ## # # = #??????? | | # #?# ## # ###########??????? | | # ### ## # ###############??? | | #####=! ## ########## #??? | | ????#] ## #????????# #??? | | ############## #????????# #??? | | # ! # #????????# #??? | | # # #????????# ### ####+###### | | # """ """ =# g #????????# #?# # # | | # """ """ # ########## #?# # # | | # """ """ # #?# # # | | # + #?# # "" "" # | | # # g #?# # ""S"" # | | # """ """ + pp #?# # """" # | | # """ """ ####+######p########## # # | | # """ """ #?? ????# @ ! ## # # | | # #?? !???# ## ###+####### | | # = #? ??# ## | | ##############? ?# ## | | ?????????????? / ## ## | | ?????????????? ## == ## | | ?????????????# ## =! ################+ | | ?????????????# ## = #???????????# | | ?????????????# ####### ####???????????# | | ?????????????#####/##+#?????###??????????????# | | ?????????????????# #??????????????????????#""" | | ?????????????????# #??????????????????????#"""" | | ?????????????????# #??????????????????????#"""" | | ?????????????????# #??????????????????????# """ | | ?????????????????# #??????????????????????# | | ?????????????????# #??????????????????????# | | ?????????????????+ #??????????????????????##### | | ?????????????????# ##############??????????????? | | ?????############# # #??????????????? | | ?????# # + #??????????????? | | ?????# # # ################ | | ?????# # # + | | ?????# " "" + + ############# ## | | ?????# "R"" # ##############???????????# #? | | ?????# """ # ## #?????????????# #? | +----------------------------------------------------+ Best States ------------- Heat Dissipation 97 Coolant Potential 80 Energy Generation 55 Energy Capacity 820 Matter Stores 300 Matter Capacity 300 Sight Range 22 Robot Scan Range 16 Terrain Scan Density 10 Jamming Range 16 Armor Coverage 800 Resistance: KI 30 Power Shielding 90 Utility Shielding 66 Weapon Cycling 25 Phase Shifting 5 Evasion (%) 69 Targeting Accuracy 8 Melee Accuracy 6 Core Analysis 6 Recoil Reduction 2 Particle Charging 30 Salvage Targeting 4 Offensive Hacking 14 Defensive Hacking 11 Item Schematics ----------------- Imp. Remote Shield | -6/Factory | Hacked Robot Schematics ------------------ None Fabricated ------------ Nothing Repaired ---------- Nothing Studied --------- Railgun | -3/Research | Hacked Antigrav Array | -3/Research | Hacked Alien Tech Used ----------------- Integrated Dissipator Achievements -------------- Short-term Sacrifices Strength In Numbers Suspicious By Nature Challenges ------------ None Game ------ Seed ServoHugeAirjet Manual? 0 Play Time 02:48:02 Cumulative 338.5 hours Start 2026.04.14 @ 15:30:32 End 2026.04.14 @ 20:34:49 Sessions 3 Manual Loads 0 Difficulty Rogue Special Mode None Game No. 187 Rogue 183 Adventurer 4 Explorer 0 Win Type - Total 13 Types 10/0/3/0/0/0/0/0/0/0 Lore% 88 Gallery% 75 Achievement% 60 Wizard Run 0 Options --------- Layout 1 ASCII 0 Keyboard 1 Movement Numpad Keybinds 1 Fullscreen 1 Font 24/Smallcaps Map View 50x35 Zoom Use 0% Tactical HUD 1 Map Filters NONE Filters NONE Steam 1 RUN: c8bada99-1e2a-495d-bcf8-c9b002345c37